Cogmind - Beta 13 @@@ ROGUE MODE // 2024.04.16 @ 18:26:25 Player: UberDoot Result: Destroyed by P-70 Sage with Tesla Rifle Performance ------------- Evolutions (5) 2500 Regions Visited (10) 2000 Robots Destroyed (38) 190 Value Destroyed (1116) 1116 Prototype IDs (7) 140 Alien Tech Used (0) 0 Bonus (537) 537 TOTAL SCORE: 6483 Bonus ------- Follower Combat Kills 50 Entered DSFs 500 Friendly Fire -13 Cogmind --------- Core Integrity 0/1000 Matter 192/300 Energy 64/100 System Corruption 14% Temperature Cool (0) Movement Flying (35) Location -5/Factory Parts ------- > --- POWER (3) -------- (None) > --- PROPULSION (6) --- VTOL Module > --- UTILITY (6) ------ (None) > --- WEAPON (2) ------- (None) > --- INVENTORY (5) ---- Fission Core Machine Analyzer Experimental Sensor Array Layered Medium Armor Plating Peak State ------------ > --- POWER ------------ (None) > --- PROPULSION ------- Linear Gravjet VTOL Module VTOL Module Nuclear Pulse Array > --- UTILITY ---------- Advanced Heat Sink Machine Analyzer Enhanced Optical Array Improved Melee Analysis Suite Advanced ECM Suite Improved Medium Armor Plating > --- WEAPON ----------- Great Axe > --- INVENTORY -------- Machine Analyzer Experimental Sensor Array Smartbomb Launcher [Rating: 53] Favorites ----------- Power Ion Engine Engine Ion Engine Power Core Light Nuclear Core Propulsion Aluminum Leg Treads Light Treads Leg Aluminum Leg Hover Unit Linear Gravjet Flight Unit VTOL Module Utility Small Storage Unit Device Advanced Heat Sink Storage Small Storage Unit Processor Targeting Computer Protection Light Armor Plating Weapon Assault Rifle Energy Gun Small Laser Energy Cannon Heavy Particle Cannon Ballistic Gun Assault Rifle Ballistic Cannon Assault Cannon Launcher Smartbomb Launcher Slashing Weapon Great Axe Build | -11 -10 -10 -9 -8 -7 -7 -7 -6 -6 -5 ------- Run | Yrd Mat Min Mat Mat Fac Low Low Fac DSF Fac Slots Evolved 10 | . . . 2 2 2 . . 2 . 2 Power 2 | . . . . . . . . 1 . 1 Propulsion 4 | . . . 1 1 1 . . 1 . . Utility 4 | . . . 1 1 1 . . . . 1 Weapon . | . . . . . . . . . . . Parts Attached 94 | 7 . 5 16 32 12 . . 7 . 15 Power 7 | 1 . . 2 3 . . . 1 . . Engine 6 | 1 . . 2 2 . . . 1 . . Core 1 | . . . . 1 . . . . . . Reactor . | . . . . . . . . . . . Propulsion 28 | 2 . . 3 12 3 . . . . 8 Treads 1 | . . . 1 . . . . . . . Leg 8 | 2 . . 2 4 . . . . . . Wheel . | . . . . . . . . . . . Hover 4 | . . . . . . . . . . 4 Flight 15 | . . . . 8 3 . . . . 4 Utility 32 | 2 . 2 6 9 5 . . 5 . 3 Device 14 | 1 . 2 4 3 1 . . 2 . 1 Storage 5 | 1 . . 2 . 1 . . 1 . . Processor 10 | . . . . 4 3 . . 2 . 1 Hackware . | . . . . . . . . . . . Protection 3 | . . . . 2 . . . . . 1 Artifact . | . . . . . . . . . . . Weapon 27 | 2 . 3 5 8 4 . . 1 . 4 Energy Gun 2 | . . . 2 . . . . . . . Energy Cannon 4 | . . . . 3 . . . . . 1 Ballistic Gun 14 | 2 . 2 3 4 2 . . . . 1 Ballistic Cannon 1 | . . . . 1 . . . . . . Launcher 2 | . . 1 . . . . . . . 1 Special Weapon . | . . . . . . . . . . . Impact Weapon . | . . . . . . . . . . . Slashing Weapon 4 | . . . . . 2 . . 1 . 1 Piercing Weapon . | . . . . . . . . . . . Special Melee Weapon . | . . . . . . . . . . . Unidentified Prototypes 3 | . . 1 . 2 . . . . . . Parts Lost 21 | . . . 1 4 . . . . 4 12 Power 1 | . . . . 1 . . . . . . Propulsion 11 | . . . . 2 . . . . 3 6 Utility 5 | . . . 1 1 . . . . 1 2 Weapon 4 | . . . . . . . . . . 4 Highest Loss Streak 7 | . . . 1 2 . . . . 4 7 To Critical Strikes . | . . . . . . . . . . . Average Slot Usage (%) 88 | . 100 100 98 96 92 92 92 84 68 41 Engine 8 | . 14 14 11 7 . . . 6 4 . Core 1 | . . . . 1 7 7 7 6 3 . Leg 19 | . 28 28 31 24 . . . . . . Flight 8 | . . . . 10 38 38 38 33 26 9 Device 14 | . 14 14 21 13 11 15 15 17 16 7 Storage 8 | . 14 14 11 6 6 7 7 . . . Processor 6 | . . . . 11 19 15 15 13 13 12 Protection 1 | . . . . 3 . . . . . 1 Ballistic Gun 14 | . 28 27 17 10 6 7 7 . . . Naked Turns 97 | . . . . . . . . . . 97 Heaviest Build 43 | 15 15 15 31 43 21 20 20 25 19 15 Greatest Support 40 | 20 20 20 30 40 20 20 20 20 20 21 Greatest Overweight (x) 7 | . . . 1 7 1 . . 1 . 3 Average Overweight (x) . | . . . . . . . . . . . Largest Inventory Capacity 15 | 8 8 8 15 15 10 10 10 10 5 5 Average Capacity 8 | 6 8 8 9 11 9 10 10 5 5 5 Most Carried 15 | 7 8 8 14 15 10 10 10 9 5 5 Average Carried 8 | 3 6 7 8 11 8 9 10 5 5 3 Final Capacity 15 | 8 8 8 15 5 10 10 10 5 5 5 Final Carried 14 | 6 8 8 14 5 10 10 10 5 5 4 Class Distribution -------------------- 42% | Mutant 32% | Scavenger-Mutant 22% | Sprinter Dominant Class ---------------- Mutant | -10/Materials Mutant | -10/Mines Scavenger-Mutant | -9/Materials Scavenger-Mutant | -8/Materials Sprinter | -7/Factory Sprinter | -7/Lower Caves Sprinter | -7/Lower Caves Infiltrator-Sprinter | -6/Factory Infiltrator-Sprinter | -6/DSF Mutant | -5/Factory Resources | -11 -10 -10 -9 -8 -7 -7 -7 -6 -6 -5 ----------- Run | Yrd Mat Min Mat Mat Fac Low Low Fac DSF Fac Matter Collected 1460 | 294 54 184 197 514 50 90 . . . 77 Remotely . | . . . . . . . . . . . Salvage Created 1383 | 128 94 225 209 578 . . . . . 149 Parts 72 | 8 3 17 14 24 . . . . . 6 Haulers Intercepted 1 | . . . . 1 . . . . . . Recyclers Shooed 2 | . . . 1 1 . . . . . . Parts Field Recycled . | . . . . . . . . . . . Retrieved Matter . | . . . . . . . . . . . Parts Self-Destructed 8 | . . . . . . 8 . . . . Prevented . | . . . . . . . . . . . Kills | -11 -10 -10 -9 -8 -7 -7 -7 -6 -6 -5 ------- Run | Yrd Mat Min Mat Mat Fac Low Low Fac DSF Fac Combat Hostiles Destroyed 32 | . 2 10 5 10 . . . . . 5 Melee 4 | . . . . . . . . . . 4 Guns 19 | . 2 8 5 4 . . . . . . Cannons 6 | . . . . 6 . . . . . . AOE 3 | . . 2 . . . . . . . 1 Classes Destroyed 8 | 2 1 1 1 1 . . . . . 2 Worker 1 | . . . . . . . . . . 1 Tunneler 1 | 1 . . . . . . . . . . Hauler 1 | . . . . 1 . . . . . . Recycler 3 | 1 . . 1 1 . . . . . . Swarmer 13 | . . 6 3 . . . . . . 4 Grunt 15 | . 2 4 1 8 . . . . . . Sentry 3 | . . . 1 2 . . . . . . Programmer 1 | . . . . . . . . . . 1 Best Kill Streak 4 | 2 1 3 1 3 . . . . . 4 Combat Bots Only 3 | . 1 3 1 3 . . . . . 3 Max Kills in Single Turn 1 | 1 1 1 1 1 . . . . . 1 Gunslinging . | . . . . . . . . . . . Exploded 1 | . . 1 . . . . . . . 1 Melee 1 | . . . . . . . . . . 1 Uniques/NPCs Destroyed . | . . . . . . . . . . . Combat | -11 -10 -10 -9 -8 -7 -7 -7 -6 -6 -5 -------- Run | Yrd Mat Min Mat Mat Fac Low Low Fac DSF Fac Hostile Shots Fired 352 | . 10 32 29 79 9 . . . 27 166 Missed 122 | . 1 7 9 19 9 . . . 8 69 Damage Taken 3806 | . 101 221 214 948 . . . . 338 1984 Core 1398 | . 46 35 50 125 . . . . 130 1012 Absorbed by Shields 94 | . . . . . . . . . 94 . Regen/Repaired (Parts) 111 | . . . . 111 . . . . . . Core Remaining (%) 85 | 100 . 67 87 77 . . 100 . 84 . Volleys Fired 114 | 4 13 17 22 48 . . . . . 10 Largest 2 | 2 2 2 2 2 . . . . . 1 Hottest 150 | 40 40 40 60 150 . . . . . 46 Shots Fired 207 | 8 26 32 39 91 . . . . . 11 Gun 151 | 8 26 30 39 39 . . . . . 9 Cannon 52 | . . . . 52 . . . . . . Launcher 4 | . . 2 . . . . . . . 2 Special . | . . . . . . . . . . . Kinetic 152 | 8 26 30 26 53 . . . . . 9 Thermal 51 | . . . 13 38 . . . . . . Explosive 4 | . . 2 . . . . . . . 2 Electromagnetic . | . . . . . . . . . . . Robot Hit Streak 11 | 4 7 10 7 11 . . . . . 9 Robot Miss Streak 5 | 1 2 2 5 2 . . . . . 3 Penetration Max . | . . . . . . . . . . . Secondary Targets 1 | . . 1 . . . . . . . . Max Gunslinging Chain 1 | . . 1 . . . . . . . . Shots Hit Robots 148 | 7 11 24 23 68 . . . . . 15 Core Hits 66 | 3 3 12 12 25 . . . . . 11 Critical Kills 2 | . 2 . . . . . . . . . Critical Parts Destroyed 1 | . . . . . . . . . . 1 Critical Strikes 3 | . 2 . . . . . . . . 1 Destroy 3 | . 2 . . . . . . . . 1 Melee Attacks 23 | . . . . . 1 . . . 1 21 Impact . | . . . . . . . . . . . Slashing 23 | . . . . . 1 . . . 1 21 Piercing . | . . . . . . . . . . . Sneak Attacks 1 | . . . . . . . . . . 1 Combat Hostiles . | . . . . . . . . . . . Follow-up Attacks . | . . . . . . . . . . . Damage Inflicted 3043 | 86 138 380 239 1365 . . . . . 835 Guns 1408 | 86 138 291 239 564 . . . . . 90 Cannons 801 | . . . . 801 . . . . . . Explosions 277 | . . 89 . . . . . . . 188 Melee 508 | . . . . . . . . . . 508 Ramming 49 | . . . . . . . . . . 49 Kinetic 1558 | 86 138 291 163 790 . . . . . 90 Thermal 651 | . . . 76 575 . . . . . . Explosive 277 | . . 89 . . . . . . . 188 Electromagnetic . | . . . . . . . . . . . Impact . | . . . . . . . . . . . Slashing 508 | . . . . . . . . . . 508 Piercing . | . . . . . . . . . . . Highest Corruption 14 | . . . . . . . . . . 14 Average Corruption 8 | . . . . . . . . . . 8 Corruption Purged . | . . . . . . . . . . . Corruption Blocked . | . . . . . . . . . . . Effects 7 | . . . . . . . . . . 7 Message Errors 2 | . . . . . . . . . . 2 Matter Fused 2 | . . . . . . . . . . 2 Energy Discharges 1 | . . . . . . . . . . 1 Misfires 1 | . . . . . . . . . . 1 Misdirections 1 | . . . . . . . . . . 1 Overload Shots . | . . . . . . . . . . . Overflow Damage 121 | . . . . . . . . . . 121 Projectiles . | . . . . . . . . . . . Explosions 10 | . . . . . . . . . . 10 Melee 111 | . . . . . . . . . . 111 Knockbacks 2 | . . . . 2 . . . . . . Impact . | . . . . . . . . . . . Kinetic 2 | . . . . 2 . . . . . . Secondary . | . . . . . . . . . . . Self-Inflicted Damage 25 | . . 2 . . . . . . . 23 Shots 1 | . . 1 . . . . . . . . Rammed 12 | . . . . . . . . . . 12 Targets Rammed 12 | . . . . . . . . . . 12 Kicked . | . . . . . . . . . . . Crushed . | . . . . . . . . . . . Highest Temperature 189 | . . 4 2 189 . . . . . 6 Average Temperature 47 | . . 4 2 50 . . . . . 6 Received Heat Transfer 864 | . 54 36 36 603 . . . . . 135 Siege Activations . | . . . . . . . . . . . Robots Corrupted . | . . . . . . . . . . . Combat Hostiles . | . . . . . . . . . . . Parts Fried . | . . . . . . . . . . . Impact Corruptions . | . . . . . . . . . . . Robots Melted . | . . . . . . . . . . . Combat Hostiles . | . . . . . . . . . . . Parts Melted 1 | . . . . 1 . . . . . . Heat Transferred 1026 | . . . 175 851 . . . . . . Parts Sabotaged . | . . . . . . . . . . . Parts Stolen . | . . . . . . . . . . . Parts Stripped . | . . . . . . . . . . . Power Chain Reactions . | . . . . . . . . . . . Alert | -11 -10 -10 -9 -8 -7 -7 -7 -6 -6 -5 ------- Run | Yrd Mat Min Mat Mat Fac Low Low Fac DSF Fac Peak Influence 357 | 10 76 287 243 262 136 . . 42 29 357 Initial 59 | . 6 29 33 20 59 . . 42 29 . Average 99 | 4 38 139 86 92 90 . . 42 18 119 Maximum Alert Level 1 | . . 1 1 1 . . . . . 1 Low Security (%) 85 | 100 100 81 88 91 100 . . 100 100 63 Level 1 14 | . . 18 11 8 . . . . . 36 Level 2 . | . . . . . . . . . . . Level 3 . | . . . . . . . . . . . Level 4 . | . . . . . . . . . . . Level 5 . | . . . . . . . . . . . High Security . | . . . . . . . . . . . Max Security . | . . . . . . . . . . . Squads Dispatched 13 | . 2 . . 6 . . . . 1 4 Investigation . | . . . . . . . . . . . Extermination 2 | . . . . . . . . . . 2 Reinforcement 7 | . 2 . . 2 . . . . 1 2 Assault 1 | . . . . 1 . . . . . . Garrison 3 | . . . . 3 . . . . . . Intercept . | . . . . . . . . . . . Searches Triggered . | . . . . . . . . . . . Construction Impeded 1 | . . . . . . . . . . 1 Haulers Reinforced . | . . . . . . . . . . . Active Scanning Responses . | . . . . . . . . . . . Cargo Convoy Interrupts . | . . . . . . . . . . . Stealth | -11 -10 -10 -9 -8 -7 -7 -7 -6 -6 -5 --------- Run | Yrd Mat Min Mat Mat Fac Low Low Fac DSF Fac Distress Signals 7 | . . . 1 1 1 . . . . 4 Communications Jammed . | . . . . . . . . . . . Distress Signals . | . . . . . . . . . . . Times Spotted 98 | . 7 10 11 19 4 2 1 . 4 40 Peak Tracking Total 15 | . 4 3 5 6 3 . 1 . 3 15 Tactical Retreats 13 | . . . 3 2 1 . . . . 7 Traps | -11 -10 -10 -9 -8 -7 -7 -7 -6 -6 -5 ------- Run | Yrd Mat Min Mat Mat Fac Low Low Fac DSF Fac Traps Triggered 5 | . . . 1 . . . . . 3 1 Indirectly . | . . . . . . . . . . . Trap Hack Attempts . | . . . . . . . . . . . Triggered . | . . . . . . . . . . . Disarmed . | . . . . . . . . . . . Reprogrammed . | . . . . . . . . . . . Reused . | . . . . . . . . . . . Traps Extracted . | . . . . . . . . . . . Installed . | . . . . . . . . . . . Triggered . | . . . . . . . . . . . Machines | -11 -10 -10 -9 -8 -7 -7 -7 -6 -6 -5 ---------- Run | Yrd Mat Min Mat Mat Fac Low Low Fac DSF Fac Machines Disabled 1 | . . 1 . . . . . . . . Max in Single Turn 1 | . . 1 . . . . . . . . Garrison Access 1 | . . . . 1 . . . . . . Machines Repaired . | . . . . . . . . . . . Machines Dismantled . | . . . . . . . . . . . Machines Sabotaged . | . . . . . . . . . . . Overloaded Fab Kills . | . . . . . . . . . . . Hacking | -11 -10 -10 -9 -8 -7 -7 -7 -6 -6 -5 --------- Run | Yrd Mat Min Mat Mat Fac Low Low Fac DSF Fac Machines Accessed 17 | . 1 . 4 6 2 . . 4 . . Terminals 9 | . 1 . 2 3 . . . 3 . . Fabricators 1 | . . . . . . . . 1 . . Repair Stations 3 | . . . 1 2 . . . . . . Recycling Units . | . . . . . . . . . . . Scanalyzers 4 | . . . 1 1 2 . . . . . Garrison Access . | . . . . . . . . . . . Total Hacks 57 | . 1 . 16 17 13 . . 10 . . Successful 34 | . 1 . 7 14 9 . . 3 . . Failed 23 | . . . 9 3 4 . . 7 . . Catastrophic 1 | . . . . . 1 . . . . . Database Lockouts . | . . . . . . . . . . . Manual 1 | . . . . 1 . . . . . . Terminals 23 | . 1 . 8 8 . . . 6 . . Fabricators 4 | . . . . . . . . 4 . . Repair Stations 9 | . . . 4 5 . . . . . . Recycling Units . | . . . . . . . . . . . Scanalyzers 21 | . . . 4 4 13 . . . . . Garrison Access . | . . . . . . . . . . . Terminal Hacks 13 | . 1 . 3 6 . . . 3 . . Record 1 | . . . . . . . . 1 . . Robot Analysis 2 | . . . 1 1 . . . . . . Prototype ID Bank 2 | . . . 1 1 . . . . . . Open DSF 1 | . . . . . . . . 1 . . Alert Level 2 | . . . 1 . . . . 1 . . Locate Traps 1 | . . . . 1 . . . . . . Hauler Manifests 2 | . 1 . . 1 . . . . . . Zone Layout 2 | . . . . 2 . . . . . . Fabricator Hacks . | . . . . . . . . . . . Repair Station Hacks 5 | . . . 1 4 . . . . . . Scan Component 3 | . . . 1 2 . . . . . . Repair 2 | . . . . 2 . . . . . . Recycling Unit Hacks . | . . . . . . . . . . . Scanalyzer 16 | . . . 3 4 9 . . . . . Insert Component 8 | . . . 1 2 5 . . . . . Analyze 8 | . . . 2 2 4 . . . . . Garrison Access Hacks . | . . . . . . . . . . . Unauthorized Hacks . | . . . . . . . . . . . Terminals . | . . . . . . . . . . . Fabricators . | . . . . . . . . . . . Repair Stations . | . . . . . . . . . . . Recycling Units . | . . . . . . . . . . . Scanalyzers . | . . . . . . . . . . . Garrison Access . | . . . . . . . . . . . Data Cores Recovered . | . . . . . . . . . . . Used . | . . . . . . . . . . . Hacking Detections 13 | . . . 4 5 2 . . 2 . . Full Trace Events . | . . . . . . . . . . . Feedback Events . | . . . . . . . . . . . Feedback Blocked . | . . . . . . . . . . . Robot Schematics Acquired . | . . . . . . . . . . . Robots Built . | . . . . . . . . . . . Authchips . | . . . . . . . . . . . Time . | . . . . . . . . . . . Total Robot Build Rating . | . . . . . . . . . . . Part Schematics Acquired 5 | . . . . 2 3 . . . . . Parts Built . | . . . . . . . . . . . Authchips . | . . . . . . . . . . . Time . | . . . . . . . . . . . Total Part Build Rating . | . . . . . . . . . . . Parts Repaired 2 | . . . . 2 . . . . . . Time 92 | . . . . 92 . . . . . . Parts Recycled . | . . . . . . . . . . . Recycled Matter . | . . . . . . . . . . . Retrieved Matter . | . . . . . . . . . . . Retrieved Components . | . . . . . . . . . . . Parts Scanalyzed 6 | . . . 1 2 3 . . . . . Part Schematics Acquired 5 | . . . . 2 3 . . . . . Parts Damaged 2 | . . . . 1 1 . . . . . Bothacking | -11 -10 -10 -9 -8 -7 -7 -7 -6 -6 -5 ------------ Run | Yrd Mat Min Mat Mat Fac Low Low Fac DSF Fac Used RIF Installer . | . . . . . . . . . . . Robots Hacked . | . . . . . . . . . . . Non-combat . | . . . . . . . . . . . Combat . | . . . . . . . . . . . Robot Hacks Applied . | . . . . . . . . . . . Relay Couplers Released 2 | . . . . 2 . . . . . . Machine Destruction 2 | . . . . 2 . . . . . . Fabnet Peak Effective % . | . . . . . . . . . . . Robots Rewired . | . . . . . . . . . . . Allies Hacked . | . . . . . . . . . . . Hacks Repelled . | . . . . . . . . . . . Allies | -11 -10 -10 -9 -8 -7 -7 -7 -6 -6 -5 -------- Run | Yrd Mat Min Mat Mat Fac Low Low Fac DSF Fac Total Allies 4 | . . 4 . . . . . . . . Largest Group 3 | . . 3 3 . . . . . . . Highest-Rated Group 40 | . . 40 40 . . . . . . . Highest-Rated Ally 31 | . . 31 16 . . . . . . . Total Orders . | . . . . . . . . . . . Ally Attacks 14 | . . 4 10 . . . . . . . Total Damage 221 | . . 84 137 . . . . . . . Kills 2 | . . . 2 . . . . . . . Allies Corrupted . | . . . . . . . . . . . Allies Melted . | . . . . . . . . . . . Intel | -11 -10 -10 -9 -8 -7 -7 -7 -6 -6 -5 ------- Run | Yrd Mat Min Mat Mat Fac Low Low Fac DSF Fac Robot Analysis Total 2 | . . . 1 1 . . . . . . Derelict Logs Recovered 2 | . . 1 . . . 1 . . . . Drone Launches . | . . . . . . . . . . . Drone Recoveries . | . . . . . . . . . . . Exploration | -11 -10 -10 -9 -8 -7 -7 -7 -6 -6 -5 ------------- Run | Yrd Mat Min Mat Mat Fac Low Low Fac DSF Fac Turns Passed 3437 | 97 151 784 611 838 215 102 8 63 42 526 Spaces Moved 3716 | 58 83 576 392 747 570 325 34 170 45 716 Core 193 | 4 . . . 3 . . . . . 186 Treads . | . . . . . . . . . . . Legs 1410 | 54 83 576 392 305 . . . . . . Wheels . | . . . . . . . . . . . Hover 5 | . . . . . . . . . . 5 Flight 2108 | . . . . 439 570 325 34 170 45 525 Fastest Speed 23 | 50 120 120 120 26 23 23 23 23 23 30 Average Speed 65 | 115 120 120 123 72 23 23 23 23 27 37 Slowest Speed 435 | 120 120 120 190 435 106 23 23 103 32 200 Overloaded Moves . | . . . . . . . . . . . Propulsion Burnouts . | . . . . . . . . . . . Robots Hopped 11 | . . . . 5 1 1 1 . . 3 Cave-ins Triggered . | . . . . . . . . . . . Exploration Rate (%) 32 | 4 19 97 25 56 17 48 7 6 50 23 Regions Visited 10 Branch Regions 3 Pre-discovered Areas 2 | . . 1 . . . 1 . . . . Known Exits Taken 1 | . . . . . . . . 1 . . Unknown Exits Taken 8 | 1 1 1 1 1 1 1 1 . . . Scrap Searched 3 | . . 1 . . . 2 . . . . Spaces Dug 13 | . . . . 3 1 . . . . 9 Terrain Destroyed 68 | . . 12 . 14 1 . . . . 41 Melee 10 | . . . . . 1 . . . . 9 Projectile 14 | . . . . 14 . . . . . . AOE 44 | . . 12 . . . . . . . 32 Terrain Rammed . | . . . . . . . . . . . Walls Destroyed . | . . . . . . . . . . . Machines Disabled . | . . . . . . . . . . . Actions | -11 -10 -10 -9 -8 -7 -7 -7 -6 -6 -5 --------- Run | Yrd Mat Min Mat Mat Fac Low Low Fac DSF Fac Total 4493 | 77 108 637 487 965 649 350 32 194 72 922 Wait 375 | 2 11 32 34 90 39 25 . 4 . 138 Move 3684 | 57 82 575 391 736 567 322 31 169 44 710 Hop 11 | . . . . 5 1 1 1 . . 3 Pick Up 70 | 7 2 3 12 18 14 1 . 6 1 6 Fast Attach 57 | 6 . 2 8 23 5 . . 2 . 11 Attach 24 | 1 . . 5 7 3 . . 4 . 4 Detach 16 | . . . 2 5 6 . . 3 . . Swap 13 | . . 3 3 2 4 . . 1 . . Drop 69 | . . 5 10 31 9 1 . 5 1 7 Fire 114 | 4 13 17 22 48 . . . . . 10 Melee 23 | . . . . . 1 . . . 1 21 Ram 12 | . . . . . . . . . . 12 Kick . | . . . . . . . . . . . Crush . | . . . . . . . . . . . Escape Stasis 25 | . . . . . . . . . 25 . Rewire . | . . . . . . . . . . . Trap . | . . . . . . . . . . . Miscellaneous . | . . . . . . . . . . . Route ------- -11/Scrapyard -10/Materials -10/Mines (discovered 2 exits: *Mat x2) -9/Materials -8/Materials -7/Factory (discovered 2 exits: [*Low x2]) -7/Lower Caves -7/Lower Caves -6/Factory -6/DSF -5/Factory History --------- Turn | Location | Event 3 | -11/Scrapyard | Discovered new exit (range 16) 98 | -11/Scrapyard | Entered Materials 140 | -10/Materials | Discovered new exit (range 15) 249 | -10/Materials | Entered Mines 309 | -10/Mines | Build established: Mutant 393 | -10/Mines | Discovered new exit (range 7) 528 | -10/Mines | Discovered new exit (range 11) 533 | -10/Mines | Received a Mining Laser from a helpful Derelict 583 | -10/Mines | Found a damaged Exp. Sensor Array with a note attached 587 | -10/Mines | Found Prototype Device 587 | -10/Mines | Identified Exp. Sensor Array 679 | -10/Mines | Assisted by bots powering up and referring to "LRC-V3" 776 | -10/Mines | Learned location of Recycling (-9) 1033 | -10/Mines | Entered Materials 1033 | -9/Materials | Accompanied by 3 allies 1033 | -9/Materials | Evolved 2 slots: Propulsion x1, Utility x1 1140 | -9/Materials | Lost 3 allies 1405 | -9/Materials | Build established: Scavenger-Mutant 1442 | -9/Materials | Discovered new exit (range 15) 1644 | -9/Materials | Entered another Materials area 1644 | -8/Materials | Evolved 2 slots: Propulsion x1, Utility x1 1671 | -8/Materials | Garrison activated, responded to threat 1789 | -8/Materials | Repaired Hvy. Assault Rifle 2378 | -8/Materials | Met 7R-MNS 2444 | -8/Materials | Repaired Enh. Autogun 2477 | -8/Materials | Discovered new exit (range 3) 2482 | -8/Materials | Entered Factory 2482 | -7/Factory | Evolved 2 slots: Propulsion x1, Utility x1 2483 | -7/Factory | Caught up to 7R-MNS 2533 | -7/Factory | Discovered new exit (range 9) 2601 | -7/Factory | Build established: Sprinter 2696 | -7/Factory | Discovered new exit (range 6) 2697 | -7/Factory | Entered Lower Caves 2761 | -7/Lower Caves | Encountered a Warlord checkpoint 2763 | -7/Lower Caves | Learned location of Extension (-5) 2791 | -7/Lower Caves | Discovered new exit (range 11) 2799 | -7/Lower Caves | Entered another Lower Caves area 2801 | -7/Lower Caves | Discovered new exit (range 10) 2807 | -7/Lower Caves | Entered Factory 2807 | -6/Factory | Evolved 2 slots: Power x1, Propulsion x1 2868 | -6/Factory | Identified exit to DSF 2870 | -6/Factory | Entered DSF 2874 | -6/DSF | Discovered new exit (range 22) 2901 | -6/DSF | Additional patrols routed to DSF 2912 | -6/DSF | Entered Factory 2912 | -5/Factory | Evolved 2 slots: Power x1, Utility x1 2937 | -5/Factory | Lost 4 parts (3n1u) 3315 | -5/Factory | Lost 7 parts (3n1u3w) 3341 | -5/Factory | Core integrity fell below 50% 3358 | -5/Factory | System corruption reached 10% 3373 | -5/Factory | Core integrity fell below 20% 3438 | -5/Factory | Destroyed by P-70 Sage with Tesla Rifle Last Messages --------------- 03361_ Penetrated by Slug. 03372_ Fabricator disabled. 03378_ System corrupted: Matter fused (-7). 03387_ Acquired Nuclear Pulse Thruster. 03400_ Acquired Lyr. Medium Armor Plating. 03409_ 2R|D3I%KKC3RSFTZPKLQJTBI 03409_ Acquired Nuclear Pulse Array. 03412_ ALERT: Rogue bot located, Programmers report to Factory Zone 5X. 03418_ Assembly Bed disabled. 03425_ System corrupted: Energy discharge (-36). 03429_ Acquired Disruptor Cannon. 03429_ Nuclear Pulse Thruster destroyed. 03435_ Nuclear Reactor explodes. 03435_ Disruptor Cannon destroyed. 03435_ Nuclear Pulse Array destroyed. 03435_ S-27 Virus destroyed. 03435_ P-70 Sage destroyed. 03435_ S-27 Virus destroyed. 03437_ Acquired VTOL Module. Map ----- +----------------------------------------------------+ | ??????????# #???????????? | | ??????????# ############# | | ??????????# # # | | ??????????# """"""" # # | | ??????????# """"""" # # | | ??????##### """"""" # # | | ????? """"""" # # | | ????? # """" """" # | | ????? / """" """" # | | ????? # """" """" # | | ????? ! # """ """" # | | ????#########+######## # """" """" # | | ???????????? ????# # """" """" # | | ????????????"" """???# # # | | ????????????"" """???# # # | | ????????????"" """ ??# ############# | | ????????????? ??# #???????????? | | ????????????"" """ ?# #???????????? | | ????????????"" """ ## #???????????? | | ????????????"" """ + #???????????? | | ????????? ##+#######?????? | | ???????# # #?????? | | ???????# # """ #?????? | | ???????# * # """ ! #?????? | | ???????############# """ %s #?????? | | ?????????????????# @[ #?????? | | ?????????????????## % % #?????? | | ?????????????????# %%* #?????? | | ?????????????????# p == #?????? | | ?????????????????# #?????? | | ?????????????????# ###?????? | | ?????????????????# ##???????? | | ?????????????????# ##????????? | | ?????????????????#########?????????? | | ???????????????????????????????????? | | ???????????????????????????????????? | | ???????????????????????????????????? | | ???????????????????????????????????? | | ???????????????????????????????????? | | ???????????????????????????????????? | | ???????????????????????????????????? | | ???????????????????????????????????? | | ???????????????????????????????????? | | ???????????????????????????????????? | | ???????????????????????????????????? | | ???????????????????????????????????? | | ???????????????????????????????????? | | ???????????????????????????????????? | | ???????????????????????????????????? | | ???????????????????????????????????? | +----------------------------------------------------+ Best States ------------- Heat Dissipation 69 Energy Generation 23 Energy Capacity 250 Matter Stores 300 Matter Capacity 300 Sight Range 22 Robot Scan Range 20 Terrain Scan Range 16 Terrain Scan Density 210 Jamming Range 12 Armor Coverage 225 Evasion (%) 65 Targeting Accuracy 19 Melee Accuracy 6 Target Analysis 5 Item Schematics ----------------- Tractor Beam | -8/Materials | Scanalyzed Assault Cannon | -8/Materials | Scanalyzed VTOL Module | -7/Factory | Scanalyzed Melee Analysis Suite | -7/Factory | Scanalyzed Enh. Autogun | -7/Factory | Scanalyzed Robot Schematics ------------------ None Fabricated ------------ Nothing Alien Tech Used ----------------- None Achievements -------------- None Challenges ------------ None Game ------ Seed CoilCoordinationChip Manual? 0 Play Time 01:03:28 Cumulative 26.8 hours Start 2024.04.16 @ 17:25:13 End 2024.04.16 @ 18:26:25 Sessions 1 Manual Loads 0 Difficulty Rogue Special Mode None Game No. 20 Rogue 20 Adventurer 0 Explorer 0 Win Type - Total 0 Types 0/0/0/0/0/0/0/0/0 Lore% 21 Gallery% 28 Achievement% 23 Wizard Run 0 Options --------- Layout 2 ASCII 0 Keyboard 1 Movement Numpad Keybinds 0 Fullscreen 1 Font 24/Smallcaps Map View 50x49 Zoom Use 0% Tactical HUD 1 Map Filters NONE Filters NONE Steam 1 RUN: 07cc935d-ec50-4074-9fd3-9bb5f75afb51